fUST/lending_fUST_20250823
["ID","MTS","AMOUNT","RATE_DAILY","PERIOD"]
[380891054,1755887704133,177.397407,0.00023057,120]
[380891061,1755887825779,1500.0,0.00013699,2]
[380891062,1755887826035,1500.0,0.00020187,2]
[380891063,1755887831378,4476.04788413,0.000199,2]
[380891066,1755887901946,-4476.04788385,0.00021627,2]
[380891067,1755887901971,-3494.9923142,0.00021693,2]
[380891068,1755887901995,-4579.3769393,0.00022011,2]
[380891069,1755887902020,-1200.0,0.00022451,2]
[380891070,1755887902044,-1811.2745532,0.00022452,2]
[380891071,1755887902070,-1200.0,0.00022873,2]
[380891072,1755887902094,-6817.4080616,0.00022874,2]
[380891073,1755887902117,-50000.0,0.00023057,2]
[380891074,1755887902140,-177.397407,0.00023057,2]
[380891075,1755887902163,-177.397407,0.00023057,25]
[380891076,1755887902187,-177.397407,0.00023057,49]
[380891077,1755887902210,-177.397407,0.00023057,72]
[380891078,1755887902234,-177.397407,0.00023057,96]
[380891079,1755887902257,-500.0,0.00023073,2]
[380891080,1755887902280,-500.0,0.00023073,2]
[380891081,1755887902304,-500.39064914,0.00023073,2]
[380891082,1755887902331,-500.0,0.00023073,2]
[380891083,1755887902357,-500.0,0.00023073,2]
[380891084,1755887902381,-500.0,0.00023073,2]
[380891085,1755887902407,-500.0,0.00023073,2]
[380891086,1755887902431,-500.0,0.00023073,2]
[380891087,1755887902455,-500.0,0.00023073,2]
[380891088,1755887902479,-160.44618203,0.00023073,2]
[380891089,1755887902503,-500.0,0.00023073,2]
[380891090,1755887902525,-500.0,0.00023073,2]
[380891091,1755887902548,-500.0,0.00023073,2]
[380891092,1755887902572,-500.0,0.00023073,2]
[380891093,1755887902597,-501.77249218,0.00023073,2]
[380891094,1755887902620,-159.55032346,0.00023073,2]
[380891095,1755887902642,-500.0,0.00023073,2]
[380891096,1755887902665,-500.0,0.00023073,2]
[380891097,1755887902688,-500.0,0.00023073,2]
[380891098,1755887902711,-500.0,0.00023073,2]
[380891099,1755887902734,-500.0,0.00023073,2]
[380891100,1755887902757,-1000.0,0.00023322,2]
[380891101,1755887902782,-4476.04788385,0.00023353,2]
[380891102,1755887902809,-500.0,0.00023973,2]
[380891103,1755887902833,-500.0,0.00023973,2]
[380891104,1755887902858,-500.0,0.00023973,2]
[380891105,1755887902882,-3981.445094,0.0002399,2]
[380891106,1755887902906,-500.0,0.00023994,2]
[380891107,1755887902934,-500.0,0.00023994,2]
[380891108,1755887902958,-500.0,0.00023994,2]
[380891109,1755887902984,-500.0,0.00023994,2]
[380891110,1755887903009,-500.0,0.00023994,2]
[380891111,1755887903032,-500.0,0.00023994,2]
[380891112,1755887903056,-399.99000677,0.00023994,2]
[380891113,1755887903080,-516.72908483,0.00023994,2]
[380891114,1755887903103,-500.0,0.00023994,2]
[380891115,1755887903126,-248.46570104,0.00023994,2]
[380891116,1755887903149,-463.97902102,0.00023994,2]
[380891117,1755887903175,-500.0,0.00023994,2]
[380891118,1755887903200,-500.0,0.00023994,2]
[380891119,1755887903225,-500.0,0.00023994,2]
[380891120,1755887903248,-500.0,0.00023994,2]
[380891121,1755887903273,-339.8174,0.00023994,2]
[380891122,1755887903297,-295.97723646,0.00023994,2]
[380891123,1755887903321,-255.13082658,0.00023994,2]
[380891124,1755887903345,-500.0,0.00023994,2]
[380891125,1755887903370,-500.0,0.00023994,2]
[380891126,1755887903394,-500.0,0.00023994,2]
[380891127,1755887903418,-500.0,0.00023994,2]
[380891128,1755887903444,-500.0,0.00023994,2]
[380891129,1755887903469,-500.0,0.00023994,2]
[380891130,1755887903494,-500.0,0.00023994,2]
[380891131,1755887903519,-500.0,0.00023994,2]
[380891132,1755887903690,-500.0,0.00023994,2]
[380891133,1755887903718,-500.0,0.00023994,2]
[380891134,1755887903748,-500.0,0.00023994,2]
[380891135,1755887903775,-500.0,0.00023994,2]
[380891136,1755887903809,-500.0,0.00023994,2]
[380891137,1755887903836,-500.0,0.00023994,2]
[380891138,1755887903863,-500.0,0.00023994,2]
[380891139,1755887903890,-500.0,0.00023994,2]
[380891140,1755887903917,-500.0,0.00023994,2]
[380891141,1755887903944,-174.82298372,0.00023994,2]
[380891142,1755887903973,-500.0,0.00023994,2]
[380891143,1755887904001,-500.0,0.00023994,2]
[380891144,1755887904028,-500.0,0.00023994,2]
[380891145,1755887904054,-500.0,0.00023994,2]
[380891146,1755887904083,-500.0,0.00023994,2]
[380891147,1755887904110,-23538.0,0.00023995,2]
[380891148,1755887904136,-566.78,0.00023997,3]
[380891149,1755887904161,-500.0,0.00024006,2]
[380891150,1755887904188,-273.26574875,0.00024007,2]
[380891151,1755887904213,-151.0,0.00024007,7]
[380891152,1755887904237,-151.0,0.00024007,7]
[380891153,1755887904263,-151.0,0.00024007,7]
[380891154,1755887904291,-151.0,0.00024007,7]
[380891155,1755887904319,-198605.8074688,0.00024007,2]
[380891156,1755887904346,-6940.391538,0.00024024,2]
[380891157,1755887904371,-348.58528445,0.00024037,2]
[380891158,1755887904397,-1000.0,0.00024521,2]
[380891159,1755887904421,-1000.0,0.00024521,2]
[380891160,1755887904446,-1000.0,0.00024521,2]
[380891161,1755887904469,-987.77234794,0.000246,2]
[380891162,1755887904493,-196.10485155,0.00024658,2]
[380891163,1755887904517,-200.0,0.00024658,2]
[380891164,1755887904543,-380.0,0.00024658,2]
[380891165,1755887904569,-200.0,0.00024658,15]
[380891166,1755887904594,-725.42494952,0.00024829,2]
[380891167,1755887904619,-5605.11848101,0.00024829,2]
[380891168,1755887904644,-125642.851988,0.000249,2]
[380891169,1755887904669,-151.0,0.000249,7]
[380891170,1755887904695,-151.0,0.000249,7]
[380891171,1755887904719,-165.74627,0.000249,7]
[380891172,1755887904744,-298.069384,0.000249,7]
[380891173,1755887904771,-151.0,0.000249,7]
[380891174,1755887904800,-151.0,0.000249,7]
[380891175,1755887904829,-151.0,0.000249,7]
[380891176,1755887904856,-41880.9506626,0.00024929,2]
[380891177,1755887904887,-151.0,0.00024939,7]
[380891178,1755887904915,-171.023675,0.00024939,7]
[380891179,1755887904940,-151.0,0.00024939,7]
[380891180,1755887904967,-164.0,0.00025,7]
[380891181,1755887904994,-151.0,0.00025041,7]
[380891182,1755887905021,-151.0,0.00025041,7]
[380891183,1755887905047,-151.0,0.00025041,7]
[380891184,1755887905077,-151.0,0.00025041,7]
[380891185,1755887905104,-151.650744,0.00025041,7]
[380891186,1755887905131,-151.0,0.00025041,7]
[380891187,1755887905158,-151.0,0.00025041,7]
[380891188,1755887905185,-191.393464,0.00025041,7]
[380891189,1755887905213,-125642.851988,0.00025041,2]
[380891190,1755887905239,-151.0,0.00025051,7]
[380891191,1755887905266,-151.0,0.00025051,7]
[380891192,1755887905293,-151.0,0.00025051,7]
[380891193,1755887905321,-151.0,0.00025051,7]
[380891194,1755887905347,-151.0,0.00025051,7]
[380891195,1755887905374,-151.0,0.00025051,7]
[380891196,1755887905400,-151.0,0.00025051,7]
[380891197,1755887905426,-151.0,0.00025051,7]
[380891198,1755887905451,-151.0,0.00025051,7]
[380891199,1755887905476,-153.805228,0.00025051,7]
[380891200,1755887905501,-465567.8143171,0.00025051,2]
[380891201,1755887905528,-500.0,0.00025068,2]
[380891202,1755887905553,-1500.0,0.00025068,2]
[380891203,1755887905581,-1500.0,0.00025068,2]
[380891204,1755887905606,-582.01960329,0.00025073,2]
[380891205,1755887905631,-611.4503268,0.00025086,2]
[380891206,1755887905656,-2007.17,0.000251,7]
[380891207,1755887905681,-30726.23,0.000251,2]
[380891208,1755887905707,-3524.51,0.000251,7]
[380891209,1755887905731,-171.2,0.000251,7]
[380891210,1755887905755,-173.0,0.00025175,3]
[380891211,1755887905778,-173.0,0.00025175,3]
[380891212,1755887905805,-173.0,0.00025175,3]
[380891213,1755887905830,-173.0,0.00025175,3]
[380891214,1755887905854,-175.1019491,0.00025175,3]
[380891215,1755887905879,-288.35200594,0.00025175,3]
[380891216,1755887905903,-326.0,0.00025175,3]
[380891217,1755887905927,-326.0,0.00025175,3]
[380891218,1755887905952,-326.0,0.00025175,3]
[380891219,1755887905981,-326.0,0.00025175,3]
[380891220,1755887906007,-326.0,0.00025175,3]
[380891221,1755887906031,-326.0,0.00025175,3]
[380891222,1755887906164,-326.0,0.00025175,3]
[380891223,1755887906227,-326.0,0.00025175,3]
[380891224,1755887906254,-326.0,0.00025175,3]
[380891225,1755887906281,-326.0,0.00025175,3]
[380891226,1755887906306,-326.0,0.00025175,3]
[380891227,1755887906335,-326.0,0.00025175,3]
[380891228,1755887906362,-326.0,0.00025175,3]
[380891229,1755887906389,-326.0,0.00025175,3]
[380891230,1755887906415,-326.0,0.00025175,3]
[380891231,1755887906441,-326.0,0.00025175,3]
[380891232,1755887906466,-326.0,0.00025175,3]
[380891233,1755887906490,-326.0,0.00025175,3]
[380891234,1755887906515,-326.0,0.00025175,3]
[380891235,1755887906539,-326.0,0.00025175,3]
[380891236,1755887906563,-326.0,0.00025175,3]
[380891237,1755887906589,-326.0,0.00025175,3]
[380891238,1755887906614,-326.0,0.00025175,3]
[380891239,1755887906637,-326.0,0.00025175,3]
[380891240,1755887906662,-326.0,0.00025175,3]
[380891241,1755887906687,-326.0,0.00025175,3]
[380891242,1755887906711,-326.0,0.00025175,3]
[380891243,1755887906736,-326.0,0.00025175,3]
[380891244,1755887906759,-326.0,0.00025175,3]
[380891245,1755887906782,-326.0,0.00025175,3]
[380891246,1755887906810,-326.0,0.00025175,3]
[380891247,1755887906836,-326.0,0.00025175,3]
[380891248,1755887906860,-354.15206038,0.00025175,3]
[380891249,1755887906887,-232.32572668,0.00025175,3]
[380891250,1755887906911,-376.07413479,0.00025175,3]
[380891251,1755887906935,-160.0,0.00025175,3]
[380891252,1755887906962,-160.0,0.00025175,3]
[380891253,1755887906986,-844.33851978,0.00025175,3]
[380891254,1755887907010,-725.42494952,0.0002556,2]
[380891255,1755887907034,-2000.0,0.00025616,2]
[380891256,1755887907057,-2000.0,0.00025616,2]
[380891257,1755887907083,-152.85,0.00025646,7]
[380891258,1755887907107,-151.177441,0.0002571,20]
[380891259,1755887907130,-200.5882963,0.00025725,2]
[380891260,1755887907155,-152.85,0.00025746,7]
[380891261,1755887907179,-152.85,0.00025846,7]
[380891262,1755887907204,-164.0,0.0002589,7]
[380891263,1755887907227,-500.0,0.00025934,2]
[380891264,1755887907251,-152.85,0.00025946,7]
[380891265,1755887907274,-844.33851978,0.00025946,7]
[380891266,1755887907302,-223.225838,0.00025968,7]
[380891267,1755887907336,-1658.183106,0.00026,30]
[380891268,1755887907371,-152.85,0.00026046,7]
[380891269,1755887907405,-152.85,0.00026146,7]
[380891270,1755887907438,-2500.0,0.00026164,2]
[380891271,1755887907469,-2500.0,0.00026164,2]
[380891272,1755887907503,-151.177441,0.00026232,20]
[380891273,1755887907532,-152.85,0.00026246,7]
[380891274,1755887907564,-500.0,0.00026246,7]
[380891275,1755887907598,-500.0,0.00026246,2]
[380891276,1755887907632,-725.42494952,0.00026291,2]
[380891277,1755887907661,-152.85,0.00026346,7]
[380891278,1755887907692,-500.0,0.00026387,2]
[380891279,1755887907727,-152.85,0.00026446,7]
[380891280,1755887907759,-10006.55460633,0.000265,2]
[380891281,1755887907792,-151.0,0.000265,7]
[380891282,1755887907822,-500.0,0.0002652,7]
[380891283,1755887907851,-500.0,0.0002652,2]
[380891284,1755887907880,-2068.78,0.0002653,2]
[380891285,1755887907913,-152.85,0.00026546,7]
[380891286,1755887907941,-162.664,0.00026546,13]
[380891287,1755887907969,-151.0,0.00026546,7]
[380891288,1755887907999,-198.0,0.00026546,7]
[380891289,1755887908030,-232.32572668,0.00026546,7]
[380891290,1755887908057,-160.0,0.00026546,7]
[380891291,1755887908088,-160.0,0.00026546,7]
[380891292,1755887908116,-5605.11848101,0.0002656,2]
[380891293,1755887908146,-152.85,0.00026646,7]
[380891294,1755887908174,-1500.0,0.00026676,2]
[380891295,1755887908204,-2993.43851858,0.00026712,2]
[380891296,1755887908232,-2504.29260842,0.00026712,2]
[380891297,1755887908262,-152.85,0.00026746,7]
[380891298,1755887908292,-151.177441,0.00026754,20]
[380891299,1755887908322,-500.0,0.00026794,7]
[380891300,1755887908351,-500.0,0.00026794,2]
[380891301,1755887908384,-4476.04788385,0.00026806,6]
[380891302,1755887908413,-151.0,0.0002682,7]
[380891303,1755887908442,-152.85,0.00026846,7]
[380891304,1755887908471,-500.0,0.00026901,2]
[380891305,1755887908500,-152.85,0.00026946,7]
[380891306,1755887908529,-774.16300182,0.00026947,7]
[380891307,1755887908558,-725.42494952,0.00027021,2]
[380891308,1755887908588,-152.85,0.00027046,7]
[380891309,1755887908618,-500.0,0.00027068,7]
[380891310,1755887908808,-2007.17,0.000271,7]
[380891311,1755887908835,-30726.23,0.000271,2]
[380891312,1755887908859,-3524.51,0.000271,7]
[380891313,1755887908885,-171.2,0.000271,7]
[380891314,1755887908908,-151.0,0.000271,7]
[380891315,1755887908932,-151.0,0.000271,7]
[380891316,1755887908955,-151.0,0.000271,7]
[380891317,1755887908979,-151.0,0.000271,7]
[380891318,1755887909002,-160.0,0.000271,7]
[380891319,1755887909026,-151.0,0.000271,7]
[380891320,1755887909049,-216.99125601,0.000271,7]
[380891321,1755887909075,-151.0,0.000271,7]
[380891322,1755887909099,-190.395828,0.000271,7]
[380891323,1755887909123,-151.0,0.000271,7]
[380891324,1755887909148,-152.85,0.00027146,7]
[380891325,1755887909173,-152.85,0.00027246,7]
[380891326,1755887909198,-500.0,0.00027342,7]
[380891327,1755887909223,-152.85,0.00027346,7]
[380891328,1755887909248,-152.85,0.00027446,15]
[380891329,1755887909273,-152.85,0.00027546,15]
[380891330,1755887909296,-230.667716,0.00027558,7]
[380891331,1755887909319,-500.0,0.00027616,7]
[380891332,1755887909345,-152.85,0.00027646,15]
[380891333,1755887909370,-386.9439334,0.00027696,30]
[380891334,1755887909396,-152.85,0.00027746,15]
[380891335,1755887909422,-725.42494952,0.00027752,2]
[380891336,1755887909447,-9112.09695462,0.00027752,2]
[380891337,1755887909472,-160.9356585,0.00027809,30]
[380891338,1755887909496,-294.0594923,0.00027809,30]
[380891339,1755887909518,-528.9579881,0.00027827,2]
[380891340,1755887909542,-152.85,0.00027846,15]
[380891341,1755887909572,-160.0,0.00027852,3]
[380891342,1755887909596,-216.99125601,0.00027852,3]
[380891343,1755887909619,-528.9579881,0.00027852,3]
[380891344,1755887909644,-370000.0,0.00027852,2]
[380891345,1755887909668,-55555.0,0.00027852,3]
[380891346,1755887909693,-151.0,0.00027852,7]
[380891347,1755887909717,-151.0,0.00027852,7]
[380891348,1755887909740,-151.0,0.00027852,7]
[380891349,1755887909764,-244.820598,0.00027852,7]
[380891350,1755887909791,-151.0,0.00027852,7]
[380891351,1755887909820,-160.0,0.00027878,2]
[380891352,1755887909846,-500.0,0.0002789,7]
[380891353,1755887909874,-152.85,0.00027946,15]
[380891354,1755887909899,-151.0,0.00027946,15]
[380891355,1755887909923,-151.0,0.00027946,15]
[380891356,1755887909947,-151.0,0.00027946,15]
[380891357,1755887909972,-151.0,0.00027946,15]
[380891358,1755887909997,-151.0,0.00027961,7]
[380891359,1755887910021,-150.0,0.00027961,120]
[380891360,1755887910051,-152.85,0.00028046,15]
[380891361,1755887910080,-150.11,0.00028047,15]
[380891362,1755887910105,-152.85,0.00028146,15]
[380891363,1755887910131,-500.0,0.00028164,7]
[380891364,1755887910157,-500.0,0.00028173,5]
[380891365,1755887910182,-151.0,0.0002822,15]
[380891366,1755887910207,-2388.07594782,0.00028227,2]
[380891367,1755887910233,-1763.0,0.00028228,7]
[380891368,1755887910263,-1763.0,0.00028228,7]
[380891369,1755887910291,-1763.0,0.00028228,7]
[380891370,1755887910318,-161.0,0.00028228,7]
[380891371,1755887910345,-161.0,0.00028228,7]
[380891372,1755887910372,-161.0,0.00028228,7]
[380891373,1755887910398,-161.0,0.00028228,7]
[380891374,1755887910424,-161.0,0.00028228,7]
[380891375,1755887910449,-156.51496579,0.00028228,7]
[380891376,1755887910475,-152.85,0.00028246,15]
[380891377,1755887910499,-5605.11848101,0.0002829,2]
[380891378,1755887910525,-1000.0,0.000283,2]
[380891379,1755887910551,-386.9439334,0.00028303,30]
[380891380,1755887910585,-386.9439334,0.00028303,30]
[380891381,1755887910612,-386.9439334,0.00028303,30]
[380891382,1755887910639,-262.815562,0.00028303,7]
[380891383,1755887910665,-152.85,0.00028346,15]
[380891384,1755887910689,-154.5447884,0.00028346,2]
[380891385,1755887910714,-211.0,0.0002838,21]
[380891386,1755887910738,-1763.0,0.00028385,7]
[380891387,1755887910763,-1763.0,0.00028385,7]
[380891388,1755887910788,-1763.0,0.00028385,7]
[380891389,1755887910817,-1763.0,0.00028385,7]
[380891390,1755887910847,-1763.0,0.00028385,7]
[380891391,1755887910871,-209.01040129,0.00028385,7]
[380891392,1755887910896,-1763.0,0.00028385,7]
[380891393,1755887910921,-1790.85791216,0.00028385,7]
[380891394,1755887910947,-153.0,0.00028385,7]
[380891395,1755887910972,-153.0,0.00028385,7]
[380891396,1755887910996,-153.0,0.00028385,7]
[380891397,1755887911021,-153.0,0.00028385,7]
[380891398,1755887911046,-153.0,0.00028385,7]
[380891399,1755887911071,-153.0,0.00028385,7]
[380891400,1755887911214,-153.0,0.00028385,7]
[380891401,1755887911238,-153.0,0.00028385,7]
[380891402,1755887911262,-153.0,0.00028385,7]
[380891403,1755887911286,-153.0,0.00028385,7]
[380891404,1755887911309,-153.0,0.00028385,7]
[380891405,1755887911333,-153.0,0.00028385,7]
[380891406,1755887911358,-153.0,0.00028385,7]
[380891407,1755887911381,-153.0,0.00028385,7]
[380891408,1755887911406,-153.0,0.00028385,7]
[380891409,1755887911430,-153.0,0.00028385,7]
[380891410,1755887911453,-153.0,0.00028385,7]
[380891411,1755887911477,-153.0,0.00028385,7]
[380891412,1755887911501,-153.0,0.00028385,7]
[380891413,1755887911526,-153.0,0.00028385,7]
[380891414,1755887911550,-153.0,0.00028385,7]
[380891415,1755887911575,-153.0,0.00028385,7]
[380891416,1755887911600,-153.0,0.00028385,7]
[380891417,1755887911623,-153.0,0.00028385,7]
[380891418,1755887911649,-153.0,0.00028385,7]
[380891419,1755887911674,-153.0,0.00028385,7]
[380891420,1755887911698,-153.0,0.00028385,7]
[380891421,1755887911722,-153.0,0.00028385,7]
[380891422,1755887911746,-153.0,0.00028385,7]
[380891423,1755887911770,-153.0,0.00028385,7]
[380891424,1755887911794,-153.0,0.00028385,7]
[380891425,1755887911821,-153.0,0.00028385,7]
[380891426,1755887911846,-153.0,0.00028385,7]
[380891427,1755887911871,-153.0,0.00028385,7]
[380891428,1755887911894,-153.0,0.00028385,7]
[380891429,1755887911917,-157.63025951,0.00028385,7]
[380891430,1755887911939,-151.0,0.00028385,7]
[380891431,1755887911965,-151.0,0.00028385,7]
[380891432,1755887911990,-216.99125601,0.0002839,7]
[380891433,1755887912015,-487.71715624,0.00028438,7]
[380891434,1755887912039,-152.92397412,0.00028446,15]
[380891435,1755887912066,-2030.296672,0.00028495,2]
[380891436,1755887912092,-250.0,0.00028495,2]
[380891437,1755887912117,-151.0,0.00028495,2]
[380891438,1755887912142,-250.0,0.00028495,2]
[380891439,1755887912167,-250.0,0.00028495,2]
[380891440,1755887912192,-250.0,0.00028495,2]
[380891441,1755887912218,-755.0,0.00028495,2]
[380891442,1755887912242,-250.0,0.00028495,2]
[380891443,1755887912267,-250.0,0.00028495,2]
[380891444,1755887912293,-250.0,0.00028495,2]
[380891445,1755887912317,-250.0,0.00028495,2]
[380891446,1755887912346,-250.0,0.00028495,2]
[380891447,1755887912371,-250.0,0.00028495,2]
[380891448,1755887912396,-250.0,0.00028495,2]
[380891449,1755887912420,-256.48132434,0.00028495,2]
[380891450,1755887912446,-4476.04788385,0.00028533,10]
[380891451,1755887912471,-673.80163361,0.0002855,2]
[380891452,1755887912494,-386.9439334,0.00028655,30]
[380891453,1755887912518,-386.9439334,0.00028655,30]
[380891454,1755887912543,-386.9439334,0.00028655,30]
[380891455,1755887912566,-386.9439334,0.00028655,30]
[380891456,1755887912592,-294.0594923,0.00028655,30]
[380891457,1755887912616,-160.9356585,0.00028655,30]
[380891458,1755887912640,-581.2325412,0.00028655,30]
[380891459,1755887912663,-160.9356585,0.00028655,30]
[380891460,1755887912686,-294.0594923,0.00028655,30]
[380891461,1755887912710,-581.2325412,0.00028655,30]
[380891462,1755887912734,-588.1189846,0.00028655,30]
[380891463,1755887912758,-500.0,0.00028721,5]
[380891464,1755887912784,-2007.17,0.000288,7]
[380891465,1755887912811,-30726.23,0.000288,2]
[380891466,1755887912838,-3524.51,0.000288,7]
[380891467,1755887912868,-171.2,0.000288,7]
[380891468,1755887912898,-160.0,0.00029,10]
[380891469,1755887912932,-800.0,0.00029085,2]
[380891470,1755887912967,-160.7442933,0.00029125,30]
[380891471,1755887912992,-580.5376587,0.00029125,30]
[380891472,1755887913016,-397.76659718,0.00029153,2]
[380891473,1755887913045,-800.0,0.00029274,2]
[380891474,1755887913072,-800.0,0.00029276,2]
[380891475,1755887913099,-800.0,0.00029287,2]
[380891476,1755887913129,-200.0,0.00029337,7]
[380891477,1755887913158,-444.0,0.0002936,2]
[380891478,1755887913185,-800.0,0.00029364,2]
[380891479,1755887913211,-800.0,0.00029408,2]
[380891480,1755887913238,-294.0594923,0.00029477,30]
[380891481,1755887913263,-160.0,0.000295,30]
[380891482,1755887913288,-216.99125601,0.000295,30]
[380891483,1755887913313,-160.0,0.000295,30]
[380891484,1755887913339,-442.0,0.00029562,7]
[380891485,1755887913364,-800.0,0.00029604,2]
[380891486,1755887913388,-800.0,0.0002968,2]
[380891487,1755887913413,-800.0,0.00029705,2]
[380891488,1755887913439,-800.0,0.00029745,2]
[380891489,1755887913465,-151.0,0.00029864,2]
[380891490,1755887913492,-1000.0,0.00029868,5]
[380891491,1755887913519,-442.0,0.0002993,2]
[380891492,1755887913546,-227.5220138,0.00029961,30]
[380891493,1755887913573,-4000.0,0.0003,4]
[380891494,1755887913733,-191.056363,0.0003,2]
[380891495,1755887914144,215.90555669,0.00025175,3]
[380891496,1755887914235,215.90555669,0.00025946,7]
[380891497,1755887914301,2774.5394676,0.00021915,2]
[380891498,1755887914373,215.90555669,0.00025,10]
[380891499,1755887914417,215.90555669,0.000279,3]
[380891500,1755887914461,215.90555669,0.000284,7]
[380891501,1755887914859,15312.7225858,0.00027842,2]
[380891502,1755887914946,1701.41362064,0.00028218,2]
[380891503,1755887915006,1701.41362064,0.0002879,2]
[380891504,1755887915040,1701.41362064,0.0002999,2]
[380891505,1755887915101,199.0,0.0002561,20]
[380891506,1755887915137,9719.41293954,0.00027842,2]
[380891507,1755887915166,1079.93477106,0.00028218,2]
[380891508,1755887915193,1079.93477106,0.0002879,2]
[380891509,1755887915259,1079.93477106,0.0002999,2]
[380891510,1755887915533,273.26574873,0.00027851,2]
[380891511,1755887917067,-720.53,0.00028387,2]
[380891512,1755887917101,-1611695.17992538,0.00028387,20]
[380891513,1755887918502,31757.8919238,0.00026829,2]
[380891514,1755887919379,2467.16,0.000251,7]
[380891515,1755887920240,2467.16,0.00027,7]
[380891516,1755887920625,305.38507789,0.00028386,2]
[380891517,1755887920820,2467.16,0.000287,7]
[380891518,1755887921211,329.33100234,0.00028386,2]
[380891519,1755887921242,500.0,0.00028386,2]
[380891520,1755887921285,463.86922041,0.00028386,2]
[380891525,1755887995422,3730.03990345,0.000199,2]
[380891530,1755888162794,3605.70523976,0.000199,2]
[380891533,1755888331801,3485.51506514,0.000199,2]
[380891543,1755888495561,3369.33122979,0.000199,2]
[380891628,1755888632130,-3369.33122959,0.00021627,2]
[380891646,1755888632643,-214.01359237,0.00022669,2]
[380891648,1755888632654,-1000.0,0.00022769,2]
[380891650,1755888632664,-3369.33122959,0.00023353,2]
[380891652,1755888632673,-300.0,0.00023514,2]
[380891654,1755888632683,-3579.55373,0.00023515,2]
[380891656,1755888632692,-151.0,0.00024007,7]
[380891658,1755888632701,-43063.3749961,0.00024041,2]
[380891659,1755888632711,-500.0,0.00024073,2]
[380891661,1755888632720,-151.0,0.000249,7]
[380891663,1755888632732,-3369.33122959,0.0002508,2]
[380891665,1755888632741,-162.664,0.0002508,9]
[380891667,1755888632751,-500.0,0.00025173,2]
[380891669,1755888632761,-500.0,0.00025173,2]
[380891671,1755888632770,-500.0,0.00025173,2]
[380891673,1755888632780,-26201.7697583,0.00025174,2]
[380891675,1755888632789,-431.97390842,0.00025174,2]
[380891677,1755888632798,-72965.6889399,0.00025184,2]
[380891679,1755888632808,-1537.752612,0.00025429,2]
[380891681,1755888632817,-420.0,0.00025513,2]
[380891683,1755888632827,-277.2980814,0.00025938,2]
[380891685,1755888632836,-502.26575725,0.00025938,2]
[380891687,1755888632846,-500.0,0.00025968,2]
[380891689,1755888632856,-500.0,0.0002602,2]
[380891691,1755888632866,-500.0,0.0002679,2]
[380891693,1755888632875,-3369.33122959,0.00026806,6]
[380891695,1755888632884,-587.0,0.00027681,2]
[380891697,1755888632893,-26201.7697583,0.0002783,2]
[380891699,1755888632902,-431.97390842,0.0002783,2]
[380891701,1755888632911,-16802.97724923,0.0002784,7]
[380891709,1755888632988,-2524.70279292,0.0002784,7]
[380891711,1755888633000,-1756.13665691,0.0002784,7]
[380891713,1755888633010,-215.90555669,0.0002784,7]
[380891715,1755888633021,-160.0,0.0002784,7]
[380891717,1755888633031,-8928.74311184,0.00027858,2]
[380892159,1755888637726,-1071.25688816,0.00027858,2]
[380892161,1755888637736,-376.07413479,0.00027897,2]